{"text_format":"1","workbook":"xlsx","n_sheets":3,"sheets":["Ведомость знаков как надо","Ведомость знаков как есть","out"],"not_rendered":{"charts":0,"images":0,"macros":1,"external_links":0,"defined_names":4,"comments":0,"pivot_tables":0},"unopened":[],"bounds":{"document_bytes":16777216,"sheet_cells":100000,"rows_first":2000,"rows_last":500,"rows_between":2000,"halvings":0,"cell_chars":16384,"cell_head_chars":4096},"cells_cut":0,"cells_raw":0,"read":"whole","date_system":"1900"}

{"sheet":"Ведомость знаков как надо","index":0,"n_rows":125,"n_cols":10,"rows_kept":125,"cut":false,"hidden":false,"merged":[[0,0,0,8],[1,0,1,8],[2,0,2,8],[5,0,5,8],[119,0,119,6],[59,0,59,6],[60,0,60,8],[73,0,73,6],[74,0,74,6],[121,0,121,6],[122,0,122,6],[123,0,123,6],[124,0,124,6],[10,0,10,6],[11,0,11,6],[12,0,12,6],[13,0,13,8],[57,0,57,6],[58,0,58,6],[120,0,120,6],[101,0,101,6],[102,0,102,6],[103,0,103,6],[104,0,104,8],[75,0,75,6],[76,0,76,8],[85,0,85,6],[86,0,86,6],[87,0,87,6],[88,0,88,8]]}
["ВЕДОМОСТЬ РАЗМЕЩЕНИЯ ДОРОЖНЫХ ЗНАКОВ (КОТОРЫЕ ДОЛЖНЫ БЫТЬ "]
["УСТАНОВЛЕНЫ И ОТОБРАЖЕНЫ В ПРОЕКТЕ В СООТВЕТСТВИИ"]
[" С ТРЕБОВАНИЯМИ ГОСТ Р 52290-2004"]
["№ п/п","Номер знака по ГОСТ Р 52290-2004","Наименование знака","Типоразмер знака","Площадь знаков, кв. м (для знаков индивидуального проектирования)","  Адрес                     (км + м)","Установлено / требуется установить","Количество","Месторасположение"]
[1,2,3,4,5,6,7,8,9]
["ПРЕДУПРЕЖДАЮЩИЕ ЗНАКИ"]
[1,"1.13","Крутой спуск",2,null,"1+900","требуется установить",1,"справа",{"$f":"IF(G7=\"установлено\",1,0)","v":0}]
[2,"1.14","Крутой подъем",2,null,"2+870","требуется установить",1,"слева",0]
[3,"1.22","Пешеходный переход",2,null,"2+609","требуется установить",1,"справа",0]
[4,"1.22","Пешеходный переход",2,null,"2+976","требуется установить",1,"слева",0]
["Итого установлено:",null,null,null,null,null,null,{"$f":"SUM(J7:J10)","v":0}]
["Итого требуется:",null,null,null,null,null,null,{"$f":"H13-H11","v":4}]
["Итого:",null,null,null,null,null,null,{"$f":"SUM(H7:H10)","v":4}]
["ЗНАКИ ПРИОРИТЕТА"]
[5,"2.1","Главная дорога",2,null,"4+499","установлено",1,"справа",1]
[6,"2.1","Главная дорога",2,null,"4+542","установлено",1,"слева",1]
[7,"2.1","Главная дорога",2,null,"4+630","установлено",1,"справа",1]
[8,"2.1","Главная дорога",2,null,"4+663","требуется установить",1,"слева",0]
[9,"2.1","Главная дорога",2,null,"4+811","установлено",1,"справа",1]
[10,"2.2","Конец главной дороги",2,null,"0+034","установлено",1,"слева",1]
[11,"2.2","Конец главной дороги",2,null,"0+205","установлено",1,"слева",1]
[12,"2.2","Конец главной дороги",2,null,"4+025","требуется установить",1,"слева",0]
[13,"2.3.1","Пересечение со второстепенной дорогой",2,null,"0+052","установлено",1,"справа",1]
[14,"2.3.1","Пересечение со второстепенной дорогой",2,null,"0+343","требуется установить",1,"слева",0]
[15,"2.3.1","Пересечение со второстепенной дорогой",2,null,"2+053","установлено",1,"справа",1]
[16,"2.3.1","Пересечение со второстепенной дорогой",2,null,"2+300","требуется установить",1,"справа",0]
[17,"2.3.1","Пересечение со второстепенной дорогой",2,null,"2+366","установлено",1,"слева",1]
[18,"2.3.1","Пересечение со второстепенной дорогой",2,null,"2+585","требуется установить",1,"слева",0]
[19,"2.3.1","Пересечение со второстепенной дорогой",2,null,"2+609","требуется установить",1,"справа",0]
[20,"2.3.1","Пересечение со второстепенной дорогой",2,null,"2+976","установлено",1,"слева",1]
[21,"2.3.1","Пересечение со второстепенной дорогой",2,null,"3+850","требуется установить",1,"справа",0]
[22,"2.3.2","Примыкание второстепенной дороги",2,null,"2+160","требуется установить",1,"слева",0]
[23,"2.3.2","Примыкание второстепенной дороги",2,null,"2+483","требуется установить",1,"справа",0]
[24,"2.3.3","Примыкание второстепенной дороги",2,null,"1+900","требуется установить",1,"справа",0]
[25,"2.4","Уступите дорогу",2,null,"0+034","установлено",1,"слева",1]
[26,"2.4","Уступите дорогу",2,null,"0+205","установлено",1,"слева",1]
[27,"2.4","Уступите дорогу",2,null,"0+215","установлено",1,"на съезед справа",1]
[28,"2.4","Уступите дорогу",2,null,"0+227","установлено",1,"на съезде слева",1]
[29,"2.4","Уступите дорогу",2,null,"0+348","требуется установить",1,"на съезед справа",0]
[30,"2.4","Уступите дорогу",2,null,"1+880","требуется установить",1,"на съезде слева",0]
[31,"2.4","Уступите дорогу",2,null,"1+885","требуется установить",1,"на съезед справа",0]
[32,"2.4","Уступите дорогу",2,null,"2+016","установлено",1,"на съезде слева",1]
[33,"2.4","Уступите дорогу",2,null,"2+170","установлено",1,"на съезед справа",1]
[34,"2.4","Уступите дорогу",2,null,"2+174","установлено",1,"на съезде слева",1]
[35,"2.4","Уступите дорогу",2,null,"2+467","установлено",1,"на съезде слева",1]
[36,"2.4","Уступите дорогу",2,null,"2+477","требуется установить",1,"на съезед справа",0]
[37,"2.4","Уступите дорогу",2,null,"2+599","установлено",1,"на съезед справа",1]
[38,"2.4","Уступите дорогу",2,null,"2+768","требуется установить",1,"на съезед справа",0]
[39,"2.4","Уступите дорогу",2,null,"2+768","установлено",1,"на съезде слева",1]
[40,"2.4","Уступите дорогу",2,null,"3+706","требуется установить",1,"на съезед справа",0]
[41,"2.4","Уступите дорогу",2,null,"4+003","требуется установить",1,"на съезед справа",0]
[42,"2.4","Уступите дорогу",2,null,"4+025","требуется установить",1,"слева",0]
[43,"2.4","Уступите дорогу",2,null,"4+125","требуется установить",1,"слева",0]
[44,"2.4","Уступите дорогу",2,null,"4+520","требуется установить",1,"на съезед справа",0]
[45,"2.4","Уступите дорогу",2,null,"4+580","требуется установить",1,"на съезде слева",0]
[46,"2.4","Уступите дорогу",2,null,"4+647","требуется установить",1,"на съезед справа",0]
[47,"2.4","Уступите дорогу",2,null,"4+861","требуется установить",1,"на съезед справа",0]
["Итого установлено:",null,null,null,null,null,null,{"$f":"SUM(J15:J57)","v":20}]
["Итого требуется:",null,null,null,null,null,null,{"$f":"H60-H58","v":23}]
["Итого:",null,null,null,null,null,null,{"$f":"SUM(H15:H57)","v":43}]
["ЗАПРЕЩАЮЩИЕ ЗНАКИ"]
[48,"3.11","Ограничение массы",2,null,"3+230","установлено",1,"справа",1]
[49,"3.11","Ограничение массы",2,null,"3+326","установлено",1,"слева",1]
[50,"3.20","Обгон запрещен",2,null,"0+010","требуется установить",1,"справа",0]
[51,"3.20","Обгон запрещен",2,null,"0+450","требуется установить",1,"слева",0]
[52,"3.20","Обгон запрещен",2,null,"1+290","требуется установить",1,"справа",0]
[53,"3.20","Обгон запрещен",2,null,"2+003","требуется установить",1,"слева",0]
[54,"3.21","Конец зоны запрещения обгона",2,null,"1+540","требуется установить",1,"слева",0]
[55,"3.21","Конец зоны запрещения обгона",2,null,"1+781","требуется установить",1,"справа",0]
[56,"3.27","Остановка запрещена",2,null,"3+495","установлено",1,"справа",1]
[57,"3.27","Остановка запрещена",2,null,"3+497","установлено",1,"слева",1]
[58,"3.27","Остановка запрещена",2,null,"3+809","установлено",1,"справа",1]
[59,"3.27","Остановка запрещена",2,null,"3+811","установлено",1,"слева",1]
["Итого установлено:",null,null,null,null,null,null,{"$f":"SUM(J62:J73)","v":6}]
["Итого требуется:",null,null,null,null,null,null,{"$f":"H76-H74","v":6}]
["Итого:",null,null,null,null,null,null,{"$f":"SUM(H62:H73)","v":12}]
["ЗНАКИ ОСОБЫХ ПРЕДПИСАНИЙ"]
[60,"5.16","Место остановки автобуса и(или) троллейбуса",2,null,"2+717","установлено",1,"слева",1]
[61,"5.16","Место остановки автобуса и(или) троллейбуса",2,null,"2+809","требуется установить",1,"справа",0]
[62,"5.19.1","Пешеходный переход",2,null,"2+783","требуется установить",1,"справа",0]
[63,"5.19.1","Пешеходный переход",2,null,"2+787","требуется установить",1,"слева",0]
[64,"5.19.2","Пешеходный переход",2,null,"2+783","требуется установить",1,"справа",0]
[65,"5.19.2","Пешеходный переход",2,null,"2+787","требуется установить",1,"слева",0]
[66,"5.23.1","Начало населенного пункта",2,null,"4+025","требуется установить",1,"справа",0]
[67,"5.24.1","Конец населенного пункта",2,null,"4+025","требуется установить",1,"справа",0]
["Итого установлено:",null,null,null,null,null,null,{"$f":"SUM(J78:J85)","v":1}]
["Итого требуется:",null,null,null,null,null,null,{"$f":"H88-H86","v":7}]
["Итого:",null,null,null,null,null,null,{"$f":"SUM(H78:H85)","v":8}]
["ИНФОРМАЦИОННЫЕ ЗНАКИ"]
[68,"6.10.1","Указатель направления",2,null,"0+086","установлено",1,"слева",1]
[69,"6.10.1","Указатель направления",2,null,"2+742","требуется установить",1,"справа",0]
[70,"6.10.1","Указатель направления",2,null,"2+809","требуется установить",1,"слева",0]
[71,"6.10.1","Указатель направления",2,null,"3+960","требуется установить",1,"справа",0]
[72,"6.10.1","Указатель направления",2,null,"4+055","требуется установить",1,"слева",0]
[73,"6.11","Наименование объекта",2,null,"3+243","установлено",1,"справа",1]
[74,"6.11","Наименование объекта",2,null,"3+297","установлено",1,"слева",1]
[75,"6.13","Километровый знак",2,null,"0+010","требуется установить",1,"справа",0]
[76,"6.13","Километровый знак",2,null,"1+000","требуется установить",1,"справа",0]
[77,"6.13","Километровый знак",2,null,"2+000","требуется установить",1,"справа",0]
[78,"6.13","Километровый знак",2,null,"3+000","требуется установить",1,"справа",0]
[79,"6.13","Километровый знак",2,null,"3+992","требуется установить",1,"справа",0]
["Итого установлено:",null,null,null,null,null,null,{"$f":"SUM(J90:J101)","v":3}]
["Итого требуется:",null,null,null,null,null,null,{"$f":"H104-H102","v":9}]
["Итого:",null,null,null,null,null,null,{"$f":"SUM(H90:H101)","v":12}]
["ЗНАКИ ДОПОЛНИТЕЛЬНОЙ ИНФОРМАЦИИ"]
[80,"8.1.1","Расстояние до объекта",2,null,"0+206","требуется установить",1,"слева",0]
[81,"8.1.1","Расстояние до объекта",2,null,"0+343","требуется установить",1,"слева",0]
[82,"8.1.1","Расстояние до объекта",2,null,"1+900","требуется установить",1,"справа",0]
[83,"8.1.1","Расстояние до объекта",2,null,"2+053","установлено",1,"справа",1]
[84,"8.1.1","Расстояние до объекта",2,null,"2+160","требуется установить",1,"слева",0]
[85,"8.1.1","Расстояние до объекта",2,null,"2+483","требуется установить",1,"справа",0]
[86,"8.1.1","Расстояние до объекта",2,null,"2+585","требуется установить",1,"слева",0]
[87,"8.1.1","Расстояние до объекта",2,null,"4+125","требуется установить",1,"слева",0]
[88,"8.2.1","Зона действия",2,null,"1+900","требуется установить",1,"справа",0]
[89,"8.2.1","Зона действия",2,null,"2+870","требуется установить",1,"слева",0]
[90,"8.2.2","Зона действия",2,null,"3+495","установлено",1,"справа",1]
[91,"8.2.2","Зона действия",2,null,"3+497","установлено",1,"слева",1]
[92,"8.2.2","Зона действия",2,null,"3+809","установлено",1,"справа",1]
[93,"8.2.2","Зона действия",2,null,"3+811","установлено",1,"слева",1]
["Итого установлено:",null,null,null,null,null,null,{"$f":"SUM(J106:J119)","v":5}]
["Итого требуется:",null,null,null,null,null,null,{"$f":"H122-H120","v":9}]
["Итого:",null,null,null,null,null,null,{"$f":"SUM(H106:H119)","v":14}]
["ВСЕГО УСТАНОВЛЕНО:",null,null,null,null,null,null,{"$f":"H120+H102+H86+H74+H58+H11","v":35}]
["ВСЕГО ТРЕБУЕТСЯ УСТАНОВИТЬ:",null,null,null,null,null,null,{"$f":"H121+H103+H87+H75+H59+H12","v":58}]
["ВСЕГО:",null,null,null,null,null,null,93]

{"sheet":"Ведомость знаков как есть","index":1,"n_rows":101,"n_cols":10,"rows_kept":101,"cut":false,"hidden":false,"merged":[[0,0,0,8],[1,0,1,8],[2,0,2,8],[100,0,100,6],[98,0,98,6],[99,0,99,6]]}
["ВЕДОМОСТЬ РАЗМЕЩЕНИЯ ДОРОЖНЫХ ЗНАКОВ (КОТОРЫЕ ДОЛЖНЫ БЫТЬ "]
["УСТАНОВЛЕНЫ И ОТОБРАЖЕНЫ В ПРОЕКТЕ В СООТВЕТСТВИИ"]
[" С ТРЕБОВАНИЯМИ ГОСТ Р 52290-2004"]
["№ п/п","Номер знака по ГОСТ Р 52290-2004","Наименование знака","Типоразмер знака","Площадь знаков, кв. м (для знаков индивидуального проектирования)","  Адрес                     (км + м)","Установлено / требуется установить","Количество","Месторасположение"]
[1,2,3,4,5,6,7,8,9]
[1,"1.13","Крутой спуск",2,null,"1+900","требуется установить",1,"справа",{"$f":"IF(G6=\"установлено\",1,0)","v":0}]
[2,"1.14","Крутой подъем",2,null,"2+870","требуется установить",1,"слева",0]
[3,"1.22","Пешеходный переход",2,null,"2+609","требуется установить",1,"справа",0]
[4,"1.22","Пешеходный переход",2,null,"2+976","требуется установить",1,"слева",0]
[5,"2.1","Главная дорога",2,null,"4+499","установлено",1,"справа",1]
[6,"2.1","Главная дорога",2,null,"4+542","установлено",1,"слева",1]
[7,"2.1","Главная дорога",2,null,"4+630","установлено",1,"справа",1]
[8,"2.1","Главная дорога",2,null,"4+663","требуется установить",1,"слева",0]
[9,"2.1","Главная дорога",2,null,"4+811","установлено",1,"справа",1]
[10,"2.2","Конец главной дороги",2,null,"0+034","установлено",1,"слева",1]
[11,"2.2","Конец главной дороги",2,null,"0+205","установлено",1,"слева",1]
[12,"2.2","Конец главной дороги",2,null,"4+025","требуется установить",1,"слева",0]
[13,"2.3.1","Пересечение со второстепенной дорогой",2,null,"0+052","установлено",1,"справа",1]
[14,"2.3.1","Пересечение со второстепенной дорогой",2,null,"0+343","требуется установить",1,"слева",0]
[15,"2.3.1","Пересечение со второстепенной дорогой",2,null,"2+053","установлено",1,"справа",1]
[16,"2.3.1","Пересечение со второстепенной дорогой",2,null,"2+300","требуется установить",1,"справа",0]
[17,"2.3.1","Пересечение со второстепенной дорогой",2,null,"2+366","установлено",1,"слева",1]
[18,"2.3.1","Пересечение со второстепенной дорогой",2,null,"2+585","требуется установить",1,"слева",0]
[19,"2.3.1","Пересечение со второстепенной дорогой",2,null,"2+609","требуется установить",1,"справа",0]
[20,"2.3.1","Пересечение со второстепенной дорогой",2,null,"2+976","установлено",1,"слева",1]
[21,"2.3.1","Пересечение со второстепенной дорогой",2,null,"3+850","требуется установить",1,"справа",0]
[22,"2.3.2","Примыкание второстепенной дороги",2,null,"2+160","требуется установить",1,"слева",0]
[23,"2.3.2","Примыкание второстепенной дороги",2,null,"2+483","требуется установить",1,"справа",0]
[24,"2.3.3","Примыкание второстепенной дороги",2,null,"1+900","требуется установить",1,"справа",0]
[25,"2.4","Уступите дорогу",2,null,"0+034","установлено",1,"слева",1]
[26,"2.4","Уступите дорогу",2,null,"0+205","установлено",1,"слева",1]
[27,"2.4","Уступите дорогу",2,null,"0+215","установлено",1,"на съезед справа",1]
[28,"2.4","Уступите дорогу",2,null,"0+227","установлено",1,"на съезде слева",1]
[29,"2.4","Уступите дорогу",2,null,"0+348","требуется установить",1,"на съезед справа",0]
[30,"2.4","Уступите дорогу",2,null,"1+880","требуется установить",1,"на съезде слева",0]
[31,"2.4","Уступите дорогу",2,null,"1+885","требуется установить",1,"на съезед справа",0]
[32,"2.4","Уступите дорогу",2,null,"2+016","установлено",1,"на съезде слева",1]
[33,"2.4","Уступите дорогу",2,null,"2+170","установлено",1,"на съезед справа",1]
[34,"2.4","Уступите дорогу",2,null,"2+174","установлено",1,"на съезде слева",1]
[35,"2.4","Уступите дорогу",2,null,"2+467","установлено",1,"на съезде слева",1]
[36,"2.4","Уступите дорогу",2,null,"2+477","требуется установить",1,"на съезед справа",0]
[37,"2.4","Уступите дорогу",2,null,"2+599","установлено",1,"на съезед справа",1]
[38,"2.4","Уступите дорогу",2,null,"2+768","требуется установить",1,"на съезед справа",0]
[39,"2.4","Уступите дорогу",2,null,"2+768","установлено",1,"на съезде слева",1]
[40,"2.4","Уступите дорогу",2,null,"3+706","требуется установить",1,"на съезед справа",0]
[41,"2.4","Уступите дорогу",2,null,"4+003","требуется установить",1,"на съезед справа",0]
[42,"2.4","Уступите дорогу",2,null,"4+025","требуется установить",1,"слева",0]
[43,"2.4","Уступите дорогу",2,null,"4+125","требуется установить",1,"слева",0]
[44,"2.4","Уступите дорогу",2,null,"4+520","требуется установить",1,"на съезед справа",0]
[45,"2.4","Уступите дорогу",2,null,"4+580","требуется установить",1,"на съезде слева",0]
[46,"2.4","Уступите дорогу",2,null,"4+647","требуется установить",1,"на съезед справа",0]
[47,"2.4","Уступите дорогу",2,null,"4+861","требуется установить",1,"на съезед справа",0]
[48,"3.11","Ограничение массы",2,null,"3+230","установлено",1,"справа",1]
[49,"3.11","Ограничение массы",2,null,"3+326","установлено",1,"слева",1]
[50,"3.20","Обгон запрещен",2,null,"0+010","требуется установить",1,"справа",0]
[51,"3.20","Обгон запрещен",2,null,"0+450","требуется установить",1,"слева",0]
[52,"3.20","Обгон запрещен",2,null,"1+290","требуется установить",1,"справа",0]
[53,"3.20","Обгон запрещен",2,null,"2+003","требуется установить",1,"слева",0]
[54,"3.21","Конец зоны запрещения обгона",2,null,"1+540","требуется установить",1,"слева",0]
[55,"3.21","Конец зоны запрещения обгона",2,null,"1+781","требуется установить",1,"справа",0]
[56,"3.27","Остановка запрещена",2,null,"3+495","установлено",1,"справа",1]
[57,"3.27","Остановка запрещена",2,null,"3+497","установлено",1,"слева",1]
[58,"3.27","Остановка запрещена",2,null,"3+809","установлено",1,"справа",1]
[59,"3.27","Остановка запрещена",2,null,"3+811","установлено",1,"слева",1]
[60,"5.16","Место остановки автобуса и(или) троллейбуса",2,null,"2+717","установлено",1,"слева",1]
[61,"5.16","Место остановки автобуса и(или) троллейбуса",2,null,"2+809","требуется установить",1,"справа",0]
[62,"5.19.1","Пешеходный переход",2,null,"2+783","требуется установить",1,"справа",0]
[63,"5.19.1","Пешеходный переход",2,null,"2+787","требуется установить",1,"слева",0]
[64,"5.19.2","Пешеходный переход",2,null,"2+783","требуется установить",1,"справа",0]
[65,"5.19.2","Пешеходный переход",2,null,"2+787","требуется установить",1,"слева",0]
[66,"5.23.1","Начало населенного пункта",2,null,"4+025","требуется установить",1,"справа",0]
[67,"5.24.1","Конец населенного пункта",2,null,"4+025","требуется установить",1,"справа",0]
[68,"6.10.1","Указатель направления",2,null,"0+086","установлено",1,"слева",1]
[69,"6.10.1","Указатель направления",2,null,"2+742","требуется установить",1,"справа",0]
[70,"6.10.1","Указатель направления",2,null,"2+809","требуется установить",1,"слева",0]
[71,"6.10.1","Указатель направления",2,null,"3+960","требуется установить",1,"справа",0]
[72,"6.10.1","Указатель направления",2,null,"4+055","требуется установить",1,"слева",0]
[73,"6.11","Наименование объекта",2,null,"3+243","установлено",1,"справа",1]
[74,"6.11","Наименование объекта",2,null,"3+297","установлено",1,"слева",1]
[75,"6.13","Километровый знак",2,null,"0+010","требуется установить",1,"справа",0]
[76,"6.13","Километровый знак",2,null,"1+000","требуется установить",1,"справа",0]
[77,"6.13","Километровый знак",2,null,"2+000","требуется установить",1,"справа",0]
[78,"6.13","Километровый знак",2,null,"3+000","требуется установить",1,"справа",0]
[79,"6.13","Километровый знак",2,null,"3+992","требуется установить",1,"справа",0]
[80,"8.1.1","Расстояние до объекта",2,null,"0+206","требуется установить",1,"слева",0]
[81,"8.1.1","Расстояние до объекта",2,null,"0+343","требуется установить",1,"слева",0]
[82,"8.1.1","Расстояние до объекта",2,null,"1+900","требуется установить",1,"справа",0]
[83,"8.1.1","Расстояние до объекта",2,null,"2+053","установлено",1,"справа",1]
[84,"8.1.1","Расстояние до объекта",2,null,"2+160","требуется установить",1,"слева",0]
[85,"8.1.1","Расстояние до объекта",2,null,"2+483","требуется установить",1,"справа",0]
[86,"8.1.1","Расстояние до объекта",2,null,"2+585","требуется установить",1,"слева",0]
[87,"8.1.1","Расстояние до объекта",2,null,"4+125","требуется установить",1,"слева",0]
[88,"8.2.1","Зона действия",2,null,"1+900","требуется установить",1,"справа",0]
[89,"8.2.1","Зона действия",2,null,"2+870","требуется установить",1,"слева",0]
[90,"8.2.2","Зона действия",2,null,"3+495","установлено",1,"справа",1]
[91,"8.2.2","Зона действия",2,null,"3+497","установлено",1,"слева",1]
[92,"8.2.2","Зона действия",2,null,"3+809","установлено",1,"справа",1]
[93,"8.2.2","Зона действия",2,null,"3+811","установлено",1,"слева",1]
["ВСЕГО УСТАНОВЛЕНО:"]
["ВСЕГО ТРЕБУЕТСЯ УСТАНОВИТЬ:"]
["ВСЕГО:"]

{"sheet":"out","index":2,"n_rows":0,"n_cols":0,"rows_kept":0,"cut":false,"hidden":false,"merged":[]}